fUST/lending_fUST_20250505
["ID","MTS","AMOUNT","RATE_DAILY","PERIOD"]
[359918646,1746421834596,-400.0,0.0003589,14]
[359918647,1746421834606,-400.0,0.0003589,14]
[359918648,1746421834615,-796.87,0.0003589,14]
[359918649,1746421834625,-400.0,0.0003589,14]
[359918650,1746421834635,-400.0,0.0003589,14]
[359918651,1746421834644,-242.67,0.0003589,14]
[359918652,1746421834653,-400.0,0.0003589,14]
[359918653,1746421834662,-400.0,0.0003589,14]
[359918654,1746421834671,-400.0,0.0003589,14]
[359918655,1746421834681,-432.6,0.0003589,14]
[359918656,1746421834691,-570.61,0.0003589,14]
[359918657,1746421834701,-212.51,0.0003589,14]
[359918658,1746421834710,-400.0,0.0003589,14]
[359918659,1746421834720,-400.0,0.0003589,14]
[359918660,1746421834729,-424.23,0.0003589,14]
[359918661,1746421834739,-400.0,0.0003589,14]
[359918662,1746421834748,-400.0,0.0003589,14]
[359918663,1746421834758,-207.04,0.0003589,14]
[359918664,1746421834767,-154.64,0.0003589,14]
[359918665,1746421834777,-400.0,0.0003589,2]
[359918666,1746421834787,-400.0,0.0003589,14]
[359918667,1746421834797,-400.0,0.0003589,14]
[359918668,1746421834807,-400.0,0.0003589,14]
[359918669,1746421834817,-394.8510373,0.0003589,14]
[359918708,1746421838668,-867.2,0.00035616,14]
[359918711,1746421838680,-5.1489627,0.0003589,14]
[359918713,1746421838689,-400.0,0.0003589,14]
[359918715,1746421838698,-1195.42,0.0003589,14]
[359918717,1746421838707,-632.46,0.0003589,14]
[359918719,1746421838716,-249.57,0.0003589,14]
[359918721,1746421838725,-400.0,0.0003589,14]
[359918723,1746421838734,-400.0,0.0003589,14]
[359918724,1746421838744,-366.3,0.0003589,14]
[359918726,1746421838753,-660.98,0.0003589,14]
[359918728,1746421838762,-219.87,0.0003589,14]
[359918730,1746421838772,-400.0,0.0003589,14]
[359918731,1746421838781,-484.63,0.0003589,14]
[359918732,1746421838798,-867.2,0.0003589,14]
[359918733,1746421838812,-315.65859339,0.000359,33]
[359918734,1746421838822,-603.75,0.000359,7]
[359918735,1746421838831,-315.65859317,0.00036072,34]
[359918736,1746421838841,-500.0,0.00036073,5]
[359918737,1746421838851,-160.0,0.00036075,2]
[359918738,1746421838861,-7394.68841945,0.000361,5]
[359918739,1746421838874,-315.60983382,0.000361,5]
[359918740,1746421839207,-118063.79174673,0.000361,5]
[359918741,1746421839354,-400.0,0.00036164,14]
[359918742,1746421839364,-216.75348093,0.00036164,14]
[359918743,1746421839374,-400.0,0.00036164,14]
[359918744,1746421839383,-400.0,0.00036164,14]
[359918745,1746421839393,-400.0,0.00036164,14]
[359918746,1746421839402,-480.04597845,0.00036164,14]
[359918747,1746421839411,-400.0,0.00036164,14]
[359918748,1746421839420,-400.0,0.00036164,14]
[359918749,1746421839430,-400.0,0.00036164,14]
[359918750,1746421839439,-400.0,0.00036164,14]
[359918751,1746421839448,-400.0,0.00036164,14]
[359918752,1746421839458,-400.0,0.00036164,14]
[359918753,1746421839468,-400.0,0.00036164,14]
[359918754,1746421839477,-405.16,0.00036164,14]
[359918755,1746421839486,-280.25,0.00036164,14]
[359918756,1746421839495,-419.46,0.00036164,14]
[359918757,1746421839505,-208.6,0.00036164,14]
[359918758,1746421839515,-400.0,0.00036164,14]
[359918759,1746421839524,-400.0,0.00036164,14]
[359918760,1746421839533,-400.0,0.00036164,14]
[359918761,1746421839543,-400.0,0.00036164,14]
[359918762,1746421839553,-400.0,0.00036164,14]
[359918763,1746421839562,-302.7,0.00036164,14]
[359918764,1746421839571,-796.87,0.00036164,14]
[359918765,1746421839580,-400.0,0.00036164,14]
[359918766,1746421839590,-400.0,0.00036164,14]
[359918767,1746421839600,-362.86,0.00036164,14]
[359918768,1746421839609,-400.0,0.00036164,14]
[359918769,1746421839618,-400.0,0.00036164,14]
[359918770,1746421839629,-432.6,0.00036164,14]
[359918771,1746421839640,-570.61,0.00036164,14]
[359918772,1746421839650,-400.0,0.00036164,14]
[359918773,1746421839659,-400.0,0.00036164,14]
[359918774,1746421839669,-515.76,0.00036164,14]
[359918775,1746421839682,-400.0,0.00036164,14]
[359918776,1746421839691,-400.0,0.00036164,2]
[359918777,1746421839701,-400.0,0.00036164,14]
[359918778,1746421839710,-400.0,0.00036164,14]
[359918779,1746421839720,-240.67,0.00036164,14]
[359918780,1746421839729,-400.0,0.00036164,14]
[359918781,1746421839739,-1195.42,0.00036164,14]
[359918782,1746421839749,-632.46,0.00036164,14]
[359918783,1746421839758,-400.0,0.00036164,14]
[359918784,1746421839767,-400.0,0.00036164,14]
[359918785,1746421839777,-660.98,0.00036164,14]
[359918786,1746421839786,-867.2,0.00036164,14]
[359918787,1746421839796,-541.52,0.0003617,14]
[359918788,1746421839806,-541.52,0.0003617,14]
[359918789,1746421839815,-24900.0,0.00036171,2]
[359918790,1746421839825,-315.65859317,0.00036245,34]
[359918791,1746421839834,-500.0,0.00036412,2]
[359918792,1746421839843,-315.65859317,0.00036417,34]
[359918793,1746421839853,-400.0,0.00036438,14]
[359918794,1746421839863,-400.0,0.00036438,14]
[359918795,1746421839873,-400.0,0.00036438,14]
[359918796,1746421839883,-400.0,0.00036438,14]
[359918797,1746421839893,-400.0,0.00036438,14]
[359918798,1746421839903,-400.0,0.00036438,14]
[359918799,1746421839912,-400.0,0.00036438,14]
[359918800,1746421839922,-400.0,0.00036438,14]
[359918801,1746421839932,-400.0,0.00036438,14]
[359918802,1746421839942,-400.0,0.00036438,14]
[359918803,1746421839953,-400.0,0.00036438,14]
[359918804,1746421839962,-210.91443783,0.00036438,14]
[359918805,1746421839972,-400.0,0.00036438,14]
[359918806,1746421839982,-400.0,0.00036438,14]
[359918807,1746421839992,-400.0,0.00036438,14]
[359918808,1746421840003,-796.87,0.00036438,14]
[359918809,1746421840012,-227.68,0.00036438,14]
[359918810,1746421840022,-187.86,0.00036438,14]
[359918811,1746421840033,-400.0,0.00036438,14]
[359918812,1746421840043,-400.0,0.00036438,14]
[359918813,1746421840055,-432.6,0.00036438,14]
[359918814,1746421840065,-570.61,0.00036438,14]
[359918815,1746421840077,-212.75,0.00036438,14]
[359918816,1746421840087,-358.73,0.00036438,14]
[359918817,1746421840097,-400.0,0.00036438,14]
[359918818,1746421840107,-400.0,0.00036438,2]
[359918819,1746421840119,-400.0,0.00036438,14]
[359918820,1746421840131,-400.0,0.00036438,14]
[359918821,1746421840143,-1195.42,0.00036438,14]
[359918822,1746421840158,-632.46,0.00036438,14]
[359918823,1746421840168,-400.0,0.00036438,14]
[359918824,1746421840179,-400.0,0.00036438,14]
[359918825,1746421840191,-660.98,0.00036438,14]
[359918826,1746421840201,-867.2,0.00036438,14]
[359918827,1746421840211,-315.65859317,0.0003659,35]
[359918828,1746421840222,-288.38037,0.000366,120]
[359918829,1746421840234,-421.46271716,0.00036612,2]
[359918830,1746421840244,-541.52,0.00036711,14]
[359918831,1746421840254,-400.0,0.00036712,14]
[359918832,1746421840264,-400.0,0.00036712,14]
[359918833,1746421840274,-400.0,0.00036712,14]
[359918834,1746421840283,-400.0,0.00036712,14]
[359918835,1746421840292,-400.0,0.00036712,14]
[359918836,1746421840302,-400.0,0.00036712,14]
[359918837,1746421840312,-300.82616487,0.00036712,14]
[359918838,1746421840321,-308.48559122,0.00036712,14]
[359918839,1746421840331,-400.0,0.00036712,14]
[359918840,1746421840340,-400.0,0.00036712,14]
[359918841,1746421840350,-400.0,0.00036712,14]
[359918842,1746421840360,-400.0,0.00036712,14]
[359918843,1746421840370,-400.0,0.00036712,14]
[359918844,1746421840380,-542.66,0.00036712,14]
[359918845,1746421840389,-796.87,0.00036712,14]
[359918846,1746421840398,-157.31,0.00036712,14]
[359918847,1746421840408,-400.0,0.00036712,14]
[359918848,1746421840419,-432.6,0.00036712,14]
[359918849,1746421840429,-570.61,0.00036712,14]
[359918850,1746421840439,-400.0,0.00036712,14]
[359918851,1746421840448,-400.0,0.00036712,2]
[359918852,1746421840458,-400.0,0.00036712,14]
[359918853,1746421840467,-400.0,0.00036712,14]
[359918854,1746421840476,-1195.42,0.00036712,14]
[359918855,1746421840486,-632.46,0.00036712,14]
[359918856,1746421840495,-400.0,0.00036712,14]
[359918857,1746421840505,-400.0,0.00036712,14]
[359918858,1746421840515,-660.98,0.00036712,14]
[359918859,1746421840524,-867.2,0.00036712,14]
[359918860,1746421840534,-315.65859317,0.00036762,35]
[359918861,1746421840544,-315.65859317,0.00036934,35]
[359918862,1746421840555,-257.70409008,0.00036986,14]
[359918863,1746421840564,-400.0,0.00036986,14]
[359918864,1746421840573,-400.0,0.00036986,14]
[359918865,1746421840583,-400.0,0.00036986,14]
[359918866,1746421840592,-400.0,0.00036986,14]
[359918867,1746421840602,-400.0,0.00036986,14]
[359918868,1746421840612,-400.0,0.00036986,14]
[359918869,1746421840621,-406.19070304,0.00036986,14]
[359918870,1746421840631,-400.0,0.00036986,14]
[359918871,1746421840641,-400.0,0.00036986,14]
[359918873,1746421840650,-400.0,0.00036986,14]
[359918875,1746421840659,-796.87,0.00036986,14]
[359918877,1746421840669,-432.6,0.00036986,14]
[359918878,1746421840679,-570.61,0.00036986,14]
[359918879,1746421840689,-188.50268077,0.00036986,14]
[359918880,1746421840698,-400.0,0.00036986,2]
[359918881,1746421840708,-400.0,0.00036986,14]
[359918882,1746421840718,-400.0,0.00036986,14]
[359918883,1746421840728,-1195.42,0.00036986,14]
[359918884,1746421840738,-632.46,0.00036986,14]
[359918885,1746421840748,-400.0,0.00036986,14]
[359918886,1746421840758,-400.0,0.00036986,14]
[359918887,1746421840767,-660.98,0.00036986,14]
[359918888,1746421840777,-867.2,0.00036986,14]
[359918889,1746421840787,-315.65859317,0.00037107,36]
[359918890,1746421840797,-400.0,0.0003726,14]
[359918891,1746421840807,-400.0,0.0003726,14]
[359918893,1746421840817,-400.0,0.0003726,14]
[359918894,1746421840826,-400.0,0.0003726,14]
[359918895,1746421840836,-400.0,0.0003726,14]
[359918896,1746421840846,-287.98762207,0.0003726,14]
[359918897,1746421840859,-400.0,0.0003726,14]
[359918898,1746421840868,-400.0,0.0003726,14]
[359918899,1746421840877,-400.0,0.0003726,14]
[359918900,1746421840886,-796.87,0.0003726,14]
[359918901,1746421840896,-432.6,0.0003726,14]
[359918902,1746421840906,-570.61,0.0003726,14]
[359918903,1746421840916,-400.0,0.0003726,2]
[359918904,1746421840926,-400.0,0.0003726,14]
[359918905,1746421840936,-400.0,0.0003726,14]
[359918906,1746421840946,-1195.42,0.0003726,14]
[359918907,1746421840957,-632.46,0.0003726,14]
[359918908,1746421840967,-400.0,0.0003726,14]
[359918909,1746421840976,-400.0,0.0003726,14]
[359918910,1746421840985,-660.98,0.0003726,14]
[359918911,1746421840994,-867.2,0.0003726,14]
[359918912,1746421841004,-315.65859317,0.00037279,36]
[359918913,1746421841014,-541.52,0.00037342,14]
[359918914,1746421841023,-315.65859317,0.00037452,36]
[359918915,1746421841033,-400.0,0.00037534,14]
[359918916,1746421841042,-400.0,0.00037534,14]
[359918917,1746421841051,-400.0,0.00037534,14]
[359918918,1746421841060,-400.0,0.00037534,14]
[359918919,1746421841070,-400.0,0.00037534,14]
[359918920,1746421841079,-400.0,0.00037534,14]
[359918921,1746421841089,-400.0,0.00037534,14]
[359918922,1746421841099,-400.0,0.00037534,14]
[359918923,1746421841109,-796.87,0.00037534,14]
[359918924,1746421841119,-432.6,0.00037534,14]
[359918925,1746421841129,-570.61,0.00037534,14]
[359918926,1746421841139,-400.0,0.00037534,2]
[359918927,1746421841151,-400.0,0.00037534,14]
[359918928,1746421841160,-400.0,0.00037534,14]
[359918929,1746421841170,-1195.42,0.00037534,14]
[359918930,1746421841180,-632.46,0.00037534,14]
[359918931,1746421841191,-400.0,0.00037534,14]
[359918932,1746421841200,-400.0,0.00037534,14]
[359918933,1746421841210,-660.98,0.00037534,14]
[359918934,1746421841219,-867.2,0.00037534,14]
[359918935,1746421841231,-421.46271715,0.00037543,2]
[359918936,1746421841241,-315.65859317,0.00037624,37]
[359918937,1746421841251,-315.65859317,0.00037797,37]
[359918938,1746421841263,-400.0,0.00037808,14]
[359918939,1746421841273,-400.0,0.00037808,14]
[359918940,1746421841283,-400.0,0.00037808,14]
[359918941,1746421841292,-400.0,0.00037808,14]
[359918942,1746421841302,-400.0,0.00037808,14]
[359918943,1746421841312,-400.0,0.00037808,14]
[359918944,1746421841321,-400.0,0.00037808,14]
[359918945,1746421841331,-400.0,0.00037808,14]
[359918946,1746421841340,-796.87,0.00037808,14]
[359918947,1746421841351,-432.6,0.00037808,14]
[359918948,1746421841361,-570.61,0.00037808,14]
[359918949,1746421841370,-287.98,0.00037808,2]
[359918950,1746421841380,-400.0,0.00037808,14]
[359918951,1746421841389,-400.0,0.00037808,14]
[359918952,1746421841399,-1195.42,0.00037808,14]
[359918953,1746421841408,-632.46,0.00037808,14]
[359918954,1746421841417,-400.0,0.00037808,14]
[359918955,1746421841427,-400.0,0.00037808,14]
[359918956,1746421841436,-660.98,0.00037808,14]
[359918957,1746421841446,-867.2,0.00037808,14]
[359918958,1746421841455,-603.75,0.000379,7]
[359918959,1746421841464,-159.5798296,0.00037928,2]
[359918960,1746421841474,-315.65859317,0.00037969,37]
[359918961,1746421841483,-541.52,0.00038081,14]
[359918962,1746421841492,-489.18,0.00038082,14]
[359918963,1746421841502,-494.97356633,0.00038082,14]
[359918964,1746421841511,-400.0,0.00038082,14]
[359918965,1746421841521,-400.0,0.00038082,14]
[359918966,1746421841530,-400.0,0.00038082,14]
[359918967,1746421841539,-400.0,0.00038082,14]
[359918968,1746421841549,-400.0,0.00038082,14]
[359918969,1746421841558,-400.0,0.00038082,14]
[359918970,1746421841568,-796.87,0.00038082,14]
[359918971,1746421841578,-432.6,0.00038082,14]
[359918972,1746421841587,-570.61,0.00038082,14]
[359918973,1746421841596,-400.0,0.00038082,14]
[359918974,1746421841605,-400.0,0.00038082,14]
[359918975,1746421841615,-1195.42,0.00038082,14]
[359918976,1746421841624,-632.46,0.00038082,14]
[359918977,1746421841634,-400.0,0.00038082,14]
[359918978,1746421841643,-400.0,0.00038082,14]
[359918979,1746421841652,-660.98,0.00038082,14]
[359918980,1746421841662,-867.2,0.00038082,14]
[359918981,1746421841671,-6449.59013038,0.00038092,3]
[359918982,1746421841680,-500.0,0.00038092,5]
[359918983,1746421841690,-315.71145815,0.00038092,5]
[359918984,1746421841699,-500.0,0.00038092,5]
[359918985,1746421841709,-500.0,0.00038092,5]
[359918986,1746421841718,-500.0,0.00038092,5]
[359918987,1746421841727,-503.69935767,0.00038092,5]
[359918988,1746421841737,-315.65859317,0.00038141,38]
[359918989,1746421841746,-500.0,0.0003825,5]
[359918990,1746421841756,-288.38037,0.000383,120]
[359918991,1746421841766,-315.65859317,0.00038314,38]
[359918992,1746421841776,-400.0,0.00038356,14]
[359918993,1746421841786,-400.0,0.00038356,14]
[359918994,1746421841795,-400.0,0.00038356,14]
[359918995,1746421841805,-796.87,0.00038356,14]
[359918996,1746421841815,-432.6,0.00038356,14]
[359918997,1746421841824,-570.61,0.00038356,14]
[359918998,1746421841833,-400.0,0.00038356,14]
[359918999,1746421841843,-400.0,0.00038356,14]
[359919000,1746421841853,-1195.42,0.00038356,14]
[359919001,1746421841862,-632.46,0.00038356,14]
[359919002,1746421841871,-400.0,0.00038356,14]
[359919003,1746421841881,-400.0,0.00038356,14]
[359919004,1746421841890,-660.98,0.00038356,14]
[359919005,1746421841901,-867.2,0.00038356,14]
[359919006,1746421841910,-590.4351376,0.00038403,4]
[359919007,1746421841921,-421.46271715,0.00038474,2]
[359919008,1746421841931,-315.65859317,0.00038486,38]
[359919009,1746421841941,-150.0,0.00038516,2]
[359919010,1746421841951,-541.52,0.00038629,14]
[359919011,1746421841960,-400.0,0.0003863,14]
[359919012,1746421841969,-400.0,0.0003863,14]
[359919013,1746421841979,-796.87,0.0003863,14]
[359919014,1746421841989,-432.6,0.0003863,14]
[359919015,1746421842001,-570.61,0.0003863,14]
[359919016,1746421842010,-400.0,0.0003863,14]
[359919017,1746421842020,-400.0,0.0003863,14]
[359919018,1746421842030,-1195.42,0.0003863,14]
[359919019,1746421842041,-632.46,0.0003863,14]
[359919020,1746421842051,-196.16,0.0003863,14]
[359919021,1746421842062,-51.37867087,0.0003863,14]
[359919022,1746421842228,-609.60132913,0.0003863,14]
[359919023,1746421842237,-867.2,0.0003863,14]
[359919024,1746421842248,-315.65859317,0.00038659,39]
[359919025,1746421842258,-315.65859317,0.00038831,39]
[359919026,1746421842268,-400.0,0.00038904,14]
[359919027,1746421842277,-400.0,0.00038904,14]
[359919028,1746421842286,-796.87,0.00038904,14]
[359919029,1746421842297,-432.6,0.00038904,14]
[359919030,1746421842307,-570.61,0.00038904,14]
[359919031,1746421842316,-400.0,0.00038904,14]
[359919032,1746421842325,-400.0,0.00038904,14]
[359919033,1746421842335,-857.59180842,0.00038904,14]
[359919034,1746421842347,-337.82819158,0.00038904,14]
[359919035,1746421842357,-162.17180842,0.00038904,14]
[359919036,1746421842373,-470.28819158,0.00038904,14]
[359919037,1746421842384,-660.98,0.00038904,14]
[359919038,1746421842394,-42.24545653,0.00038904,14]
[359919039,1746421842407,-824.95454347,0.00038904,14]
[359919040,1746421842418,-128.69100549,0.00038933,2]
[359919041,1746421842430,-109.38514751,0.00038933,2]
[359919042,1746421842440,-315.65859317,0.00039003,39]
[359919043,1746421842451,-228.44844466,0.00039165,2]
[359919063,1746421843724,-352.67233225,0.00039165,2]
[359919065,1746421843736,-1661.87922309,0.00039165,2]
[359919067,1746421843746,-315.65859317,0.00039176,40]
[359919070,1746421843756,-400.0,0.00039178,14]
[359919072,1746421843765,-796.87,0.00039178,14]
[359919074,1746421843775,-432.6,0.00039178,14]
[359919076,1746421843784,-570.61,0.00039178,14]
[359919078,1746421843793,-400.0,0.00039178,14]
[359919080,1746421843802,-400.0,0.00039178,14]
[359919082,1746421843812,-1195.42,0.00039178,14]
[359919084,1746421843822,-632.46,0.00039178,14]
[359919086,1746421843832,-660.98,0.00039178,14]
[359919088,1746421843841,-867.2,0.00039178,14]
[359919090,1746421843851,-500.0,0.00039259,5]
[359919092,1746421843861,-315.65859317,0.00039348,40]
[359919094,1746421843870,-421.46271715,0.00039404,2]
[359919096,1746421843880,-541.52,0.00039451,14]
[359919098,1746421843890,-400.0,0.00039452,14]
[359919100,1746421843901,-796.87,0.00039452,14]
[359919102,1746421843910,-432.6,0.00039452,14]
[359919104,1746421843919,-570.61,0.00039452,14]
[359919106,1746421843929,-400.0,0.00039452,14]
[359919108,1746421843939,-400.0,0.00039452,14]
[359919110,1746421843947,-1195.42,0.00039452,14]
[359919112,1746421843956,-632.46,0.00039452,14]
[359919114,1746421843966,-660.98,0.00039452,14]
[359919116,1746421843975,-867.2,0.00039452,14]
[359919118,1746421843985,-315.65859317,0.00039521,40]
[359919120,1746421843994,-603.75,0.000396,7]
[359919122,1746421844003,-315.65859317,0.00039693,41]
[359919124,1746421844013,-400.0,0.00039726,14]
[359919126,1746421844023,-796.87,0.00039726,14]
[359919128,1746421844032,-432.6,0.00039726,14]
[359919130,1746421844041,-570.61,0.00039726,14]
[359919132,1746421844051,-400.0,0.00039726,14]
[359919134,1746421844060,-400.0,0.00039726,14]
[359919136,1746421844070,-1195.42,0.00039726,14]
[359919138,1746421844079,-632.46,0.00039726,14]
[359919140,1746421844088,-660.98,0.00039726,14]
[359919142,1746421844097,-867.2,0.00039726,14]
[359919144,1746421844106,-420.11486684,0.00039754,2]
[359919146,1746421844116,-315.65859317,0.00039866,41]
[359919148,1746421844125,-334.20994101,0.0003989,3]
[359919150,1746421844134,-541.52,0.00039899,14]
[359919152,1746421844144,-541.52,0.00039899,14]
[359919154,1746421844153,-541.52,0.00039899,14]
[359919156,1746421844162,-541.52,0.00039899,14]
[359919158,1746421844176,-541.52,0.00039899,14]
[359919160,1746421844186,-541.52,0.00039899,14]
[359919162,1746421844195,-541.52,0.00039899,14]
[359919164,1746421844204,-4912.59402989,0.000399,2]
[359919166,1746421844214,-668.41988202,0.0003999,3]
[359919168,1746421844223,-25.33133055,0.00039999,14]
[359919171,1746421844236,-516.18866945,0.00039999,14]
[359919173,1746421844245,-541.52,0.00039999,14]
[359919175,1746421844255,-541.52,0.00039999,14]
[359919177,1746421844265,-541.52,0.00039999,14]
[359919179,1746421844274,-541.52,0.00039999,14]
[359919181,1746421844283,-476.75226305,0.00039999,14]
[359919183,1746421844295,-64.76773695,0.00039999,14]
[359919185,1746421844304,-541.67,0.00039999,14]
[359919187,1746421844313,-2194.33349557,0.0004,30]
[359919189,1746421844325,-1959.75805476,0.0004,30]
[359919191,1746421844336,-1367.26537925,0.0004,30]
[359919193,1746421844347,-714.49541537,0.0004,30]
[359919196,1746421844366,-400.0,0.00035616,14]
[359919198,1746421844375,-565.70028572,0.0004,30]
[359919402,1746421846683,-400.0,0.00035616,14]
[359919403,1746421846693,-400.0,0.0003589,14]
[359919404,1746421846703,-400.0,0.0003589,14]
[359919405,1746421846712,-400.0,0.00036164,14]
[359919406,1746421846722,-429.0,0.00036164,14]
[359919407,1746421846732,-202.12,0.00036438,14]
[359919408,1746421846742,-94487.23785444,0.0004,30]
[359919409,1746421846753,-2164.43419,0.0004,30]
[359919435,1746422732131,-1400.0,0.00026,7]
[359919436,1746422732153,-271.840886,0.00027397,2]
[359919437,1746422732174,-64.94496088,0.00031944,8]
[359919439,1746422748093,-258.61147962,0.00031944,8]
[359919440,1746422748115,-271.840886,0.00033165,2]
[359919441,1746422748138,-167.0110091,0.00035516,2]
[359919442,1746422748170,-289.16091539,0.00035615,7]
[359919443,1746422748193,-500.0,0.00035615,7]
[359919444,1746422748216,-299.5140633,0.00035615,7]
[359919445,1746422748238,-400.0,0.00035615,2]
[359919446,1746422748259,-211.57182776,0.00035616,14]
[359919447,1746422748281,-500.0,0.00035616,15]
[359919448,1746422748302,-163.11282082,0.00035616,14]
[359919451,1746422837153,-236.88717918,0.00035616,14]
[359919452,1746422837174,-400.0,0.00035616,14]
[359919453,1746422837194,-472.99,0.00035616,14]
[359919454,1746422837219,-145.03528841,0.00035616,14]
[359919456,1746422846080,-212.97098329,0.00035516,2]
[359919457,1746422846111,-254.96471159,0.00035616,14]
[359919458,1746422846130,-400.0,0.00035616,14]
[359919459,1746422846150,-686.95,0.00035616,14]
[359919460,1746422846170,-400.0,0.00035616,14]
[359919461,1746422846190,-400.0,0.00035616,14]
[359919462,1746422846210,-400.0,0.00035616,14]
[359919463,1746422846229,-400.0,0.00035616,14]
[359919464,1746422846248,-133.54174668,0.00035616,14]
[359919470,1746422947119,-329.96897337,0.00029,10]
[359919471,1746422958118,-19909.2233038,0.00033691,2]
[359919472,1746422967145,-167.01100909,0.00035516,2]
[359919473,1746422967165,-266.45825332,0.00035616,14]
[359919474,1746422967185,-400.0,0.00035616,14]
[359919475,1746422967205,-400.0,0.00035616,14]
[359919476,1746422967224,-400.0,0.00035616,14]
[359919477,1746422967244,-400.0,0.00035616,14]
[359919478,1746422967263,-400.0,0.00035616,14]
[359919479,1746422967282,-413.06728554,0.00035616,14]
[359919480,1746422967301,-400.0,0.00035616,14]
[359919481,1746422967320,-367.20871788,0.00035616,14]
[359919482,1746422976494,150.0,0.00033516,2]
[359919489,1746423018073,199.332775,0.00033691,2]
[359919496,1746423031969,-32.79128212,0.00035616,14]
[359919497,1746423031978,-411.83,0.00035616,14]
[359919498,1746423031988,-285.50736224,0.00035616,14]
[359919499,1746423031997,-400.0,0.00035616,14]
[359919500,1746423032007,-400.0,0.00035616,14]
[359919501,1746423032016,-400.0,0.00035616,14]
[359919502,1746423032025,-400.0,0.00035616,14]
[359919503,1746423032035,-400.0,0.00035616,14]
[359919504,1746423032044,-400.0,0.00035616,14]
[359919505,1746423032053,-400.0,0.00035616,14]
[359919506,1746423032063,-411.27,0.00035616,14]
[359919507,1746423032073,-400.0,0.00035616,14]
[359919508,1746423032082,-487.8,0.00035616,14]
[359919509,1746423032091,-400.0,0.00035616,14]
[359919510,1746423032104,-400.0,0.00035616,14]
[359919511,1746423032116,-400.0,0.00035616,14]
[359919512,1746423032128,-400.0,0.00035616,14]
[359919513,1746423032140,-400.0,0.00035616,14]
[359919514,1746423032152,-400.67,0.00035616,14]
[359919515,1746423032164,-400.0,0.00035616,14]
[359919516,1746423032175,-401.59274398,0.00035616,14]
[359919517,1746423032185,-400.0,0.00035616,14]
[359919518,1746423032195,-417.99448071,0.00035616,14]
[359919519,1746423032206,-400.0,0.00035616,14]
[359919520,1746423032217,-402.92457542,0.00035616,14]
[359919521,1746423032228,-507.45487003,0.00035616,14]
[359919522,1746423032239,-413.76841128,0.00035616,14]
[359919523,1746423032250,-407.15845487,0.00035616,14]
[359919524,1746423032261,-400.0,0.00035616,14]
[359919525,1746423032272,-400.0,0.00035616,14]
[359919526,1746423032284,-400.0,0.00035616,14]
[359919527,1746423032296,-400.0,0.00035616,14]
[359919528,1746423032309,-400.0,0.00035616,14]
[359919529,1746423032319,-400.0,0.00035616,14]
[359919530,1746423032329,-201.95468706,0.00035616,14]
[359919531,1746423032340,-400.0,0.00035616,14]
[359919532,1746423032351,-400.0,0.00035616,14]
[359919533,1746423032362,-400.0,0.00035616,14]
[359919534,1746423032374,-400.0,0.00035616,14]
[359919535,1746423032385,-400.0,0.00035616,14]